Workbook

Sheet Giderler
B3: Etkinlik Bütçesi: [Etkinlik Adı]
H4: Giderler
H6: Tahmini | I6: Fiili
C7: Toplam Giderler | H7: =SUM(D14,D22,D28,D35,H14,H22,H27) -> 1,145.00 ₺ | I7: =SUM(E14,E22,E28,E35,I14,I22,I27) -> 395.00 ₺
C9: Site | D9: Tahmini | E9: Fiili | G9: Atıştırma | H9: Tahmini | I9: Fiili
C10: Oda ve salon ücretleri | D10: 500.00 ₺ | E10: 250.00 ₺ | G10: Yiyecek
C11: Site personeli | D11: 400.00 ₺ | E11: 50.00 ₺ | G11: İçecekler
C12: Ekipman | G12: Masa Örtüleri
C13: Masalar ve sandalyeler | G13: Personel ve bahşişler
C14: Toplam | D14: =SUBTOTAL(109,Tablo1[Tahmini]) -> 900.00 ₺ | E14: =SUBTOTAL(109,Tablo1[Fiili]) -> 300.00 ₺ | G14: Toplam | H14: =SUBTOTAL(109,Tablo5[Tahmini]) -> 0.00 ₺ | I14: =SUBTOTAL(109,Tablo5[Fiili]) -> 0.00 ₺
C16: Dekorasyonlar | D16: Tahmini | E16: Fiili | G16: Program | H16: Tahmini | I16: Fiili
C17: Çiçekler | D17: 200.00 ₺ | E17: 50.00 ₺ | G17: Sanatçı
C18: Mumlar | G18: Konuşmacı
C19: Aydınlatma | G19: Seyahat
C20: Balonlar | G20: Otel
C21: Kağıt malzemeler | G21: Diğer
C22: Toplam | D22: =SUBTOTAL(109,Tablo2[Tahmini]) -> 200.00 ₺ | E22: =SUBTOTAL(109,Tablo2[Fiili]) -> 50.00 ₺ | G22: Toplam | H22: =SUBTOTAL(109,Tablo6[Tahmini]) -> 0.00 ₺ | I22: =SUBTOTAL(109,Tablo6[Fiili]) -> 0.00 ₺
C24: Tanıtım | D24: Tahmini | E24: Fiili | G24: Ödüller | H24: Tahmini | I24: Fiili
C25: Grafik işleri | D25: 45.00 ₺ | E25: 45.00 ₺ | G25: Kurdeleler/Plaketler/Kupalar
C26: Fotokopi/Yazdırma | G26: Hediyeler
C27: Posta | G27: Toplam | H27: =SUBTOTAL(109,Tablo7[Tahmini]) -> 0.00 ₺ | I27: =SUBTOTAL(109,Tablo7[Fiili]) -> 0.00 ₺
C28: Toplam | D28: =SUBTOTAL(109,Tablo3[Tahmini]) -> 45.00 ₺ | E28: =SUBTOTAL(109,Tablo3[Fiili]) -> 45.00 ₺
C30: Çeşitli | D30: Tahmini | E30: Fiili
C31: Telefon
C32: Ulaşım
C33: Kırtasiye malzemeleri
C34: Faks hizmetleri
C35: Toplam | D35: =SUBTOTAL(109,Tablo4[Tahmini]) -> 0.00 ₺ | E35: =SUBTOTAL(109,Tablo4[Fiili]) -> 0.00 ₺

Sheet Gelir
B3: Etkinlik Bütçesi: [Etkinlik Adı]
F4: Gelir
F6: Tahmini | G6: Fiili
B7: Toplam Gelir | F7: =SUM(F14,F21,F28,F36) -> 1,936.00 ₺ | G7: =SUM(G14,G21,G28,G36) -> 1,831.00 ₺
B9: Girişler
B10: Tahmini | C10: Fiili | F10: Tahmini | G10: Fiili
B11: 300 | C11: 278 | D11: Yetişkinler @ | E11: 5.00 ₺ | F11: =B11*E11 -> 1,500.00 ₺ | G11: =C11*E11 -> 1,390.00 ₺
B12: 197 | C12: 195 | D12: Çocuklar @ | E12: 2.00 ₺ | F12: =B12*E12 -> 394.00 ₺ | G12: =C12*E12 -> 390.00 ₺
B13: 42 | C13: 51 | D13: Diğer @ | E13: 1.00 ₺ | F13: =B13*E13 -> 42.00 ₺ | G13: =C13*E13 -> 51.00 ₺
F14: =SUM(F11:F13) -> 1,936.00 ₺ | G14: =SUM(G11:G13) -> 1,831.00 ₺
B16: Programdaki reklamlar
B17: Tahmini | C17: Fiili | F17: Tahmini | G17: Fiili
D18: Kapaklar @ | F18: =B18*E18 -> 0.00 ₺ | G18: =C18*E18 -> 0.00 ₺
D19: Yarım sayfalar @ | F19: =B19*E19 -> 0.00 ₺ | G19: =C19*E19 -> 0.00 ₺
D20: Çeyrek sayfalar @ | F20: =B20*E20 -> 0.00 ₺ | G20: =C20*E20 -> 0.00 ₺
F21: =SUM(F18:F20) -> 0.00 ₺ | G21: =SUM(G18:G20) -> 0.00 ₺
B23: Sergi Açanlar/Satıcılar
B24: Tahmini | C24: Fiili | F24: Tahmini | G24: Fiili
D25: Büyük standlar @ | F25: =B25*E25 -> 0.00 ₺ | G25: =C25*E25 -> 0.00 ₺
D26: Orta boy standlar @ | F26: =B26*E26 -> 0.00 ₺ | G26: =C26*E26 -> 0.00 ₺
D27: Küçük standlar @ | F27: =B27*E27 -> 0.00 ₺ | G27: =C27*E27 -> 0.00 ₺
F28: =SUM(F25:F27) -> 0.00 ₺ | G28: =SUM(G25:G27) -> 0.00 ₺
B30: Ürün satışları
B31: Tahmini | C31: Fiili | F31: Tahmini | G31: Fiili
D32: Ürünler @ | F32: =B32*E32 -> 0.00 ₺ | G32: =C32*E32 -> 0.00 ₺
D33: Ürünler @ | F33: =B33*E33 -> 0.00 ₺ | G33: =C33*E33 -> 0.00 ₺
D34: Ürünler @ | F34: =B34*E34 -> 0.00 ₺ | G34: =C34*E34 -> 0.00 ₺
D35: Ürünler @ | F35: =B35*E35 -> 0.00 ₺ | G35: =C35*E35 -> 0.00 ₺
F36: =SUM(F32:F35) -> 0.00 ₺ | G36: =SUM(G32:G35) -> 0.00 ₺

Sheet Özet
B3: Etkinlik Bütçesi: [Etkinlik Adı]
F4: Kâr-Zarar Özeti
F6: Tahmini | G6: Fiili
B7: Toplam gelir | F7: =Gelir!F7 -> 1,936.00 ₺ | G7: =Gelir!G7 -> 1,831.00 ₺
B8: Toplam giderler | F8: =Giderler!H7 -> 1,145.00 ₺ | G8: =Giderler!I7 -> 395.00 ₺
B9: Toplam kâr (veya zarar) | F9: =F7-F8 -> 791.00 ₺ | G9: =G7-G8 -> 1,436.00 ₺
